Cogmind - Beta 13 @@@ ROGUE MODE // 2024.04.03 @ 09:53:33 Player: iromakkem Result: Destroyed by S-10 Pest with Light Assault Rifle Performance ------------- Evolutions (0) 0 Regions Visited (1) 200 Robots Destroyed (10) 50 Value Destroyed (233) 233 Prototype IDs (2) 40 Alien Tech Used (0) 0 Bonus (0) 0 TOTAL SCORE: 523 Bonus ------- None Cogmind --------- Core Integrity 0/250 Matter 249/300 Energy 250/250 System Corruption 0% Temperature Cool (0) Movement Core (750) Ox14 Location -10/Materials Parts ------- > --- POWER (1) -------- Ion Engine > --- PROPULSION (2) --- (None) > --- UTILITY (2) ------ High-capacity Storage Unit > --- WEAPON (2) ------- (None) > --- INVENTORY (20) --- Ion Engine Light Nuclear Core Heat Sink Improved Heat Sink Small Storage Unit Medium Matter Pod (38) Signal Interpreter Terrain Scanner Seismic Detector EM Pulse Gun Small Laser Peak State ------------ > --- POWER ------------ Ion Engine > --- PROPULSION ------- Aluminum Leg Aluminum Leg > --- UTILITY ---------- Huge Storage Unit Seismic Detector > --- WEAPON ----------- Small Laser Light Assault Rifle > --- INVENTORY -------- Ion Engine Ion Engine Ion Engine Light Nuclear Core Aluminum Leg Aluminum Leg Heat Sink Improved Heat Sink Small Storage Unit Medium Matter Pod Signal Interpreter Terrain Scanner EM Pulse Gun Small Laser Small Laser Light Assault Rifle [Rating: 9] Favorites ----------- Power Ion Engine Engine Ion Engine Propulsion Aluminum Leg Treads Light Treads Leg Aluminum Leg Utility Huge Storage Unit Device Seismic Detector Storage Huge Storage Unit Weapon Small Laser Energy Gun Small Laser Ballistic Gun Light Assault Rifle Build | -11 -10 ------- Run | Yrd Mat Slots Evolved . | . . Power . | . . Propulsion . | . . Utility . | . . Weapon . | . . Parts Attached 23 | 7 16 Power 3 | 1 2 Engine 3 | 1 2 Core . | . . Reactor . | . . Propulsion 9 | 2 7 Treads 2 | . 2 Leg 7 | 2 5 Wheel . | . . Hover . | . . Flight . | . . Utility 6 | 2 4 Device 1 | 1 . Storage 5 | 1 4 Processor . | . . Hackware . | . . Protection . | . . Artifact . | . . Weapon 5 | 2 3 Energy Gun 3 | 2 1 Energy Cannon . | . . Ballistic Gun 2 | . 2 Ballistic Cannon . | . . Launcher . | . . Special Weapon . | . . Impact Weapon . | . . Slashing Weapon . | . . Piercing Weapon . | . . Special Melee Weapon . | . . Unidentified Prototypes . | . . Parts Lost 7 | . 7 Power 1 | . 1 Propulsion 2 | . 2 Utility 2 | . 2 Weapon 2 | . 2 Highest Loss Streak 6 | . 6 To Critical Strikes . | . . Average Slot Usage (%) 93 | . 93 Engine 13 | . 13 Treads 10 | . 10 Leg 13 | . 13 Device 8 | . 8 Storage 19 | . 19 Energy Gun 14 | . 14 Ballistic Gun 13 | . 13 Naked Turns . | . . Heaviest Build 89 | 14 89 Greatest Support 40 | 20 40 Greatest Overweight (x) 15 | . 15 Average Overweight (x) 2 | . 2 Largest Inventory Capacity 25 | 8 25 Average Capacity 22 | 7 23 Most Carried 19 | 5 19 Average Carried 14 | 3 14 Final Capacity 20 | 8 20 Final Carried 11 | 4 11 Class Distribution -------------------- 100% | Mutant Dominant Class ---------------- Mutant | -10/Materials Resources | -11 -10 ----------- Run | Yrd Mat Matter Collected 525 | 250 275 Remotely . | . . Salvage Created 378 | 89 289 Parts 24 | 5 19 Haulers Intercepted . | . . Recyclers Shooed 1 | 1 . Parts Field Recycled . | . . Retrieved Matter . | . . Parts Self-Destructed . | . . Prevented . | . . Kills | -11 -10 ------- Run | Yrd Mat Combat Hostiles Destroyed 5 | . 5 Guns 5 | . 5 Classes Destroyed 5 | 2 3 Worker 1 | . 1 Tunneler 2 | 1 1 Recycler 1 | 1 . Watcher 1 | . 1 Grunt 5 | . 5 Best Kill Streak 2 | 2 2 Combat Bots Only 2 | . 2 Max Kills in Single Turn 1 | 1 1 Gunslinging . | . . Exploded . | . . Melee . | . . Uniques/NPCs Destroyed . | . . Combat | -11 -10 -------- Run | Yrd Mat Hostile Shots Fired 138 | . 138 Missed 33 | . 33 Damage Taken 1060 | . 1060 Core 251 | . 251 Absorbed by Shields . | . . Core Remaining (%) 100 | 100 . Volleys Fired 58 | 6 52 Largest 2 | 2 2 Hottest 80 | 80 60 Shots Fired 113 | 12 101 Gun 113 | 12 101 Cannon . | . . Launcher . | . . Special . | . . Kinetic 52 | . 52 Thermal 55 | 6 49 Explosive . | . . Electromagnetic 6 | 6 . Robot Hit Streak 10 | 5 10 Robot Miss Streak 5 | 1 5 Penetration Max . | . . Secondary Targets . | . . Shots Hit Robots 68 | 9 59 Core Hits 25 | 2 23 Critical Kills . | . . Critical Parts Destroyed 1 | . 1 Critical Strikes 1 | . 1 Destroy 1 | . 1 Melee Attacks . | . . Impact . | . . Slashing . | . . Piercing . | . . Sneak Attacks . | . . Combat Hostiles . | . . Follow-up Attacks . | . . Damage Inflicted 719 | 123 596 Guns 710 | 123 587 Cannons . | . . Explosions . | . . Melee . | . . Ramming 9 | . 9 Kinetic 249 | . 249 Thermal 383 | 45 338 Explosive . | . . Electromagnetic 78 | 78 . Impact . | . . Slashing . | . . Piercing . | . . Highest Corruption . | . . Average Corruption . | . . Corruption Purged . | . . Corruption Blocked . | . . Overload Shots . | . . Overflow Damage . | . . Projectiles . | . . Explosions . | . . Melee . | . . Knockbacks . | . . Impact . | . . Kinetic . | . . Secondary . | . . Self-Inflicted Damage . | . . Shots . | . . Rammed . | . . Targets Rammed 3 | . 3 Kicked 3 | . 3 Crushed . | . . Highest Temperature 106 | 54 106 Average Temperature 35 | 24 37 Received Heat Transfer 366 | . 366 Siege Activations . | . . Robots Corrupted . | . . Combat Hostiles . | . . Parts Fried . | . . Impact Corruptions . | . . Robots Melted . | . . Combat Hostiles . | . . Parts Melted . | . . Heat Transferred 875 | 100 775 Parts Sabotaged . | . . Parts Stolen . | . . Parts Stripped . | . . Power Chain Reactions . | . . Alert | -11 -10 ------- Run | Yrd Mat Peak Influence 101 | 10 101 Initial 6 | . 6 Average 28 | 1 30 Maximum Alert Level . | . . Low Security (%) 100 | 100 100 Level 1 . | . . Level 2 . | . . Level 3 . | . . Level 4 . | . . Level 5 . | . . High Security . | . . Max Security . | . . Squads Dispatched 1 | . 1 Investigation 1 | . 1 Extermination . | . . Reinforcement . | . . Assault . | . . Garrison . | . . Intercept . | . . Searches Triggered . | . . Construction Impeded . | . . Haulers Reinforced . | . . Active Scanning Responses . | . . Cargo Convoy Interrupts . | . . Stealth | -11 -10 --------- Run | Yrd Mat Distress Signals . | . . Communications Jammed . | . . Distress Signals . | . . Times Spotted 16 | . 16 Peak Tracking Total 7 | . 7 Tactical Retreats 1 | . 1 Traps | -11 -10 ------- Run | Yrd Mat Traps Triggered 3 | . 3 Indirectly . | . . Trap Hack Attempts . | . . Triggered . | . . Disarmed . | . . Reprogrammed . | . . Reused . | . . Traps Extracted . | . . Installed . | . . Triggered . | . . Machines | -11 -10 ---------- Run | Yrd Mat Machines Disabled . | . . Max in Single Turn . | . . Machines Repaired . | . . Machines Dismantled . | . . Machines Sabotaged . | . . Overloaded Fab Kills . | . . Hacking | -11 -10 --------- Run | Yrd Mat Machines Accessed 3 | . 3 Terminals 3 | . 3 Fabricators . | . . Repair Stations . | . . Recycling Units . | . . Scanalyzers . | . . Garrison Access . | . . Total Hacks 12 | . 12 Successful 6 | . 6 Failed 6 | . 6 Catastrophic 1 | . 1 Database Lockouts . | . . Manual 1 | . 1 Terminals 12 | . 12 Fabricators . | . . Repair Stations . | . . Recycling Units . | . . Scanalyzers . | . . Garrison Access . | . . Terminal Hacks 6 | . 6 Prototype ID Bank 1 | . 1 Locate Traps 2 | . 2 Hauler Manifests 2 | . 2 Zone Layout 1 | . 1 Fabricator Hacks . | . . Repair Station Hacks . | . . Recycling Unit Hacks . | . . Scanalyzer . | . . Garrison Access Hacks . | . . Unauthorized Hacks . | . . Terminals . | . . Fabricators . | . . Repair Stations . | . . Recycling Units . | . . Scanalyzers . | . . Garrison Access . | . . Data Cores Recovered . | . . Used . | . . Hacking Detections 2 | . 2 Full Trace Events 2 | . 2 Feedback Events . | . . Feedback Blocked . | . . Robot Schematics Acquired . | . . Robots Built . | . . Authchips . | . . Time . | . . Total Robot Build Rating . | . . Part Schematics Acquired . | . . Parts Built . | . . Authchips . | . . Time . | . . Total Part Build Rating . | . . Parts Repaired . | . . Time . | . . Parts Recycled . | . . Recycled Matter . | . . Retrieved Matter . | . . Retrieved Components . | . . Parts Scanalyzed . | . . Part Schematics Acquired . | . . Parts Damaged . | . . Bothacking | -11 -10 ------------ Run | Yrd Mat Used RIF Installer . | . . Robots Hacked . | . . Non-combat . | . . Combat . | . . Robot Hacks Applied . | . . Relay Couplers Released . | . . Fabnet Peak Effective % . | . . Robots Rewired . | . . Allies Hacked . | . . Hacks Repelled . | . . Allies | -11 -10 -------- Run | Yrd Mat Total Allies . | . . Largest Group . | . . Highest-Rated Group . | . . Highest-Rated Ally . | . . Total Orders . | . . Ally Attacks . | . . Total Damage . | . . Kills . | . . Allies Corrupted . | . . Allies Melted . | . . Intel | -11 -10 ------- Run | Yrd Mat Robot Analysis Total . | . . Derelict Logs Recovered . | . . Drone Launches . | . . Drone Recoveries . | . . Exploration | -11 -10 ------------- Run | Yrd Mat Turns Passed 1902 | 86 1816 Spaces Moved 523 | 46 477 Core 11 | 7 4 Treads 203 | . 203 Legs 309 | 39 270 Wheels . | . . Hover . | . . Flight . | . . Fastest Speed 50 | 50 120 Average Speed 320 | 109 340 Slowest Speed 800 | 120 800 Overloaded Moves . | . . Propulsion Burnouts . | . . Robots Hopped . | . . Cave-ins Triggered . | . . Exploration Rate (%) 24 | 4 45 Regions Visited 1 Branch Regions . Pre-discovered Areas . | . . Known Exits Taken . | . . Unknown Exits Taken 1 | 1 . Scrap Searched . | . . Spaces Dug . | . . Terrain Destroyed . | . . Melee . | . . Projectile . | . . AOE . | . . Terrain Rammed . | . . Walls Destroyed . | . . Machines Disabled . | . . Actions | -11 -10 --------- Run | Yrd Mat Total 641 | 69 572 Wait 3 | . 3 Move 522 | 45 477 Hop . | . . Pick Up 29 | 11 18 Fast Attach . | . . Attach 18 | 7 11 Detach 1 | . 1 Swap 5 | . 5 Drop 2 | . 2 Fire 58 | 6 52 Melee . | . . Ram . | . . Kick 3 | . 3 Crush . | . . Escape Stasis . | . . Rewire . | . . Trap . | . . Miscellaneous . | . . Route ------- -11/Scrapyard -10/Materials (discovered 1 exit: [*Min]) History --------- Turn | Location | Event 14 | -11/Scrapyard | Discovered new exit (range 16) 87 | -11/Scrapyard | Entered Materials 303 | -10/Materials | Build established: Mutant 986 | -10/Materials | Discovered new exit (range 12) 1860 | -10/Materials | Core integrity fell below 50% 1886 | -10/Materials | Core integrity fell below 20% 1903 | -10/Materials | Destroyed by S-10 Pest with Light Assault Rifle Last Messages --------------- 01862_ U-05 Engineer lays Concrete. 01864_ K-01 Serf cleans the Matter Pump. 01864_ U-05 Engineer lays Concrete. 01868_ R-06 Scavenger collects Ion Engine. 01871_ K-01 Serf cleans the Matter Pump. 01871_ R-06 Scavenger collects Sml. Laser. 01874_ K-01 Serf cleans the Matter Pump. 01876_ Kicked R-06 Scavenger. 01877_ Ion Engine destroyed. 01878_ Aluminum Leg destroyed. 01879_ K-01 Serf cleans the Matter Pump. 01880_ Kicked U-05 Engineer out of the way. 01883_ Triggered Blade Trap. 01883_ Massive razor-sharp blades shoot up from within the floor. 01883_ Aluminum Leg severed. 01884_ Lgt. Assault Rifle destroyed. 01890_ Sml. Laser destroyed. 01891_ Med. Matter Pod destroyed. 01898_ U-05 Engineer lays Concrete. Map ----- +----------------------------------------------------+ | ?????????????????????????????????????????????????? | | ?????????????????????????????????????????????????? | | ?????????????????????????????????????????????????? | | ?????????????????????????????????????????????????? | | ?????????????????????????????????????????????????? | | ??????????????????????????? ?????????????????????? | | ??????????????????????????? ?????????????????????? | | ??????????????????????????? ?????????????????????? | | ??????????????????????????? ?????????????????????? | | ??????????????????????????? ?????????????????????? | | ??????????????????????????? #???????????########## | | ??????????????????????????? ???????????# | | ??????????????????????????? #########??# """ | | ??????????????????????????? #? #??# """ | | ??????????????????????????? #? """ #??# """ R" | | ??????????????????????????? #?? """ ???# """ """ | | ???????????????????????????# #?? """ ???# """ | | ???????????????????????????# #??? ????# | | ???????????????????????????# #??? ????# | | ????????????????############ #####+##########+#### | | ????????????????# ## | | ????????????????# ## ############## | | ????????????????# = ## #??########### | | ????????????????# ! ## ##?# # | | ????????????????# # #?# # | | ????????????????# @# #?# # | | ????????????????# ss #?# + | | ????????????????# #su #?# """ """ # | | ????????????????########### g #?# """ """ ######+# | | ????????????????????? g #?# """ """ #?# | | ???????????????? #?# #?# | | ??????????????? #?###########?# | | ??????????????""" """ """ #?############# | | ????????????????" """ """ #? ## | | ???????????????????""" """ #? ## | | ??????????????????? #? ## | | ??????????????????? ? /? ## | | ??????????????????? ??? #? ## | | ??????????????????#?????"## #?#+########### | | ??????????????????????????# ? + | | ??????????????????????????# ? ########## ! | | ?????????????????????????? ? #????????###### | | ??????????????????????????# ? #?????????????? | | ??????????????????????????? ? #?????????##### | | ???????????????????????????????? #?????????# T | | ???????????????????????????????? #?????????# | | ???????????????????????????????? ########??# | | ???????????????????????????????? # #??# | | ???????????????????????????????? # #??# | | ???????????????????????????????? # """ #??# | +----------------------------------------------------+ Best States ------------- Heat Dissipation 25 Energy Generation 10 Energy Capacity 250 Matter Stores 400 Matter Capacity 400 Sight Range 16 Terrain Scan Density 10 Evasion (%) 50 Recoil Reduction 2 Item Schematics ----------------- None Robot Schematics ------------------ None Fabricated ------------ Nothing Alien Tech Used ----------------- None Achievements -------------- None Challenges ------------ None Game ------ Seed LobotomyDeuteriumArray Manual? 0 Play Time 00:11:50 Cumulative 6.9 hours Start 2024.04.03 @ 09:37:44 End 2024.04.03 @ 09:53:33 Sessions 1 Manual Loads 0 Difficulty Rogue Special Mode None Game No. 8 Rogue 8 Adventurer 0 Explorer 0 Win Type - Total 0 Types 0/0/0/0/0/0/0/0/0 Lore% 4 Gallery% 11 Achievement% 11 Wizard Run 0 Options --------- Layout 1 ASCII 0 Keyboard 0 Movement Mouse Keybinds 0 Fullscreen 1 Font 32/SmallcapsGlow Map View 50x35 Zoom Use 0% Tactical HUD 1 Map Filters NONE Filters NONE Steam 1 RUN: 82bb5c48-ec8f-4e0e-bfad-3394215d8163